bitfinex/quotes_SOLUSD_20250612
["timestamp","ask_amount","ask_price","bid_price","bid_amount"]
[1749712882215,13.88674636,159.4,159.34,26.0]
[1749712882216,1.6633,159.45,159.38,13.88674636]
[1749712882417,13.88674636,159.42,159.38,13.88674636]
[1749712884917,13.88674636,159.42,159.34,18.64964886]
[1749712884918,13.88674636,159.4,159.37,26.0]
[1749712887430,6.27261659,159.43,159.37,26.0]
[1749712887726,13.88674636,159.4,159.37,26.0]
[1749712888805,13.88674636,159.4,159.29,11.51]
[1749712888806,13.88674636,159.38,159.29,1.51]
[1749712888833,13.88674636,159.33,159.29,1.51]
[1749712888853,26.0,159.4,159.29,1.51]
[1749712888854,13.88674636,159.37,159.32,13.88674636]
[1749712889529,13.88674636,159.36,159.31,39.88674636]
[1749712889723,13.88674636,159.34,159.3,13.88674636]
[1749712889926,13.88674636,159.34,159.29,26.0]
[1749712889927,13.88674636,159.32,159.25,18.64964886]
[1749712890131,13.88674636,159.3,159.26,13.88674636]
[1749712890432,13.88674636,159.29,159.24,13.88674636]
[1749712890609,13.88674636,159.29,159.27,26.0]
[1749712890934,13.88674636,159.3,159.27,26.0]
[1749712891827,13.88674636,159.31,159.27,26.0]
[1749712892134,13.88674636,159.32,159.27,39.88674636]
[1749712893134,13.88674636,159.31,159.27,39.88674636]
[1749712893330,13.88674636,159.28,159.26,26.0]
[1749712893632,13.88674636,159.27,159.26,26.0]
[1749712894047,13.88674636,159.27,159.25,26.0]
[1749712894218,13.88674636,159.28,159.26,26.0]
[1749712897144,13.88674636,159.28,159.24,13.88674636]
[1749712897313,6.4938,159.31,159.24,13.88674636]
[1749712897515,13.88674636,159.28,159.24,13.88674636]
[1749712898237,1.88192314,159.33,159.26,13.88674636]
[1749712898466,1.88192314,159.33,159.23,26.0]
[1749712898467,13.88674636,159.32,159.27,13.88674636]
[1749712898748,1.5976,159.33,159.28,13.88674636]
[1749712898931,15.48434636,159.33,159.26,26.0]
[1749712899121,15.48434636,159.33,159.28,13.88674636]
[1749712899738,15.48434636,159.33,159.29,13.88674636]
[1749712901744,13.88674636,159.34,159.29,13.88674636]
[1749712902743,4.66528723,159.36,159.29,13.88674636]
[1749712902744,13.88674636,159.33,159.29,13.88674636]
[1749712903140,13.88674636,159.33,159.28,13.88674636]
[1749712903339,13.88674636,159.32,159.28,13.88674636]
[1749712903926,13.88674636,159.33,159.28,13.88674636]
[1749712904346,13.88674636,159.3,159.26,13.88674636]
[1749712904923,13.88674636,159.31,159.26,39.88674636]
[1749712905124,13.88674636,159.31,159.27,13.88674636]
[1749712905650,13.88674636,159.32,159.28,13.88674636]
[1749712906451,13.88674636,159.32,159.27,13.88674636]
[1749712908246,13.88674636,159.31,159.27,13.88674636]
[1749712908636,13.88674636,159.32,159.26,26.0]
[1749712908844,13.88674636,159.32,159.28,13.88674636]
[1749712909171,13.88674636,159.31,159.27,13.88674636]
[1749712910447,13.88674636,159.32,159.27,13.88674636]
[1749712910650,13.88674636,159.31,159.27,13.88674636]
[1749712910979,13.88674636,159.29,159.26,26.0]
[1749712912149,6.56023827,159.34,159.26,26.0]
[1749712912150,13.88674636,159.3,159.26,26.0]
[1749712912831,13.88674636,159.3,159.26,39.88674636]
[1749712916046,13.88674636,159.3,159.26,26.0]
[1749712917127,13.88674636,159.3,159.25,13.88674636]
[1749712918238,13.88674636,159.3,159.24,26.0]
[1749712918433,13.88674636,159.3,159.25,13.88674636]
[1749712920248,5.82906559,159.35,159.26,13.88674636]
[1749712920249,18.57089162,159.31,159.26,13.88674636]
[1749712920453,13.88674636,159.35,159.3,13.88674636]
[1749712920645,4.68633415,159.36,159.32,13.88674636]
[1749712920840,164.54424636,159.37,159.33,13.88674636]
[1749712921039,13.88674636,159.38,159.34,13.88674636]
[1749712921242,4.6872424,159.37,159.34,13.88674636]
[1749712921476,4.68748828,159.38,159.34,13.88674636]
[1749712921752,13.88674636,159.39,159.34,13.88674636]
[1749712922058,18.5724445,159.38,159.33,13.88674636]
[1749712922360,13.88674636,159.37,159.33,13.88674636]
[1749712922739,13.88674636,159.35,159.31,26.0]
[1749712923054,13.88674636,159.34,159.29,39.88674636]
[1749712923363,13.88674636,159.34,159.3,13.88674636]
[1749712923750,13.88674636,159.35,159.3,13.88674636]
[1749712924455,18.57089979,159.35,159.3,13.88674636]
[1749712924658,13.88674636,159.35,159.3,13.88674636]
[1749712926671,13.88674636,159.36,159.31,13.88674636]
[1749712926841,13.88674636,159.35,159.31,13.88674636]
[1749712927747,18.57089232,159.37,159.33,13.88674636]
[1749712927954,13.88674636,159.37,159.31,26.0]
[1749712928153,13.88674636,159.37,159.32,13.88674636]
[1749712930461,13.88674636,159.38,159.34,13.88674636]
[1749712930861,18.57051962,159.38,159.33,13.88674636]
[1749712931073,13.88674636,159.38,159.32,18.64964886]
[1749712931259,13.88674636,159.37,159.32,13.88674636]
[1749712931772,32.27355101,159.4,159.32,26.0]
[1749712931773,13.88674636,159.36,159.32,26.0]
[1749712931971,13.88674636,159.35,159.31,13.88674636]
[1749712932680,13.88674636,159.34,159.3,13.88674636]
[1749712934656,13.88674636,159.36,159.31,13.88674636]
[1749712934967,4.68104556,159.38,159.32,13.88674636]
[1749712935157,13.88674636,159.38,159.34,13.88674636]
[1749712935359,18.5680406,159.38,159.3,18.64964886]
[1749712935560,18.5680406,159.38,159.34,13.88674636]
[1749712935858,18.5680406,159.38,159.33,13.88674636]
[1749712935859,13.88674636,159.37,159.33,13.88674636]
[1749712936240,4.68129424,159.38,159.34,13.88674636]
[1749712936441,18.5680406,159.4,159.35,13.88674636]
[1749712936663,4.68129424,159.39,159.35,13.88674636]
[1749712936845,4.68129424,159.39,159.36,13.88674636]
[1749712937044,13.88674636,159.4,159.36,13.88674636]
[1749712937265,18.56701931,159.4,159.36,13.88674636]
[1749712937463,18.56701931,159.4,159.35,13.88674636]
[1749712939166,13.88674636,159.39,159.35,13.88674636]
[1749712939553,13.88674636,159.39,159.34,13.88674636]
[1749712939881,13.88674636,159.37,159.33,13.88674636]
[1749712940055,13.88674636,159.35,159.31,39.88674636]
[1749712940252,13.88674636,159.36,159.31,13.88674636]
[1749712940458,13.88674636,159.36,159.31,39.88674636]
[1749712940674,13.88674636,159.36,159.32,13.88674636]
[1749712940879,13.88674636,159.37,159.33,13.88674636]
[1749712941769,4.68027295,159.39,159.35,13.88674636]
[1749712941770,13.88674636,159.39,159.35,13.88674636]
[1749712942559,13.88674636,159.4,159.35,13.88674636]
[1749712942870,18.56701931,159.4,159.35,13.88674636]
[1749712943168,13.88674636,159.39,159.35,13.88674636]
[1749712943561,13.88674636,159.38,159.34,13.88674636]
[1749712944082,6.22287295,159.41,159.32,13.88674636]
[1749712944083,13.88674636,159.36,159.32,13.88674636]
[1749712944449,13.88674636,159.36,159.31,39.88674636]
[1749712944655,13.88674636,159.35,159.31,39.88674636]
[1749712946062,13.88674636,159.35,159.31,26.0]
[1749712946257,13.88674636,159.33,159.26,24.66084886]
[1749712946556,13.88674636,159.33,159.29,13.88674636]
[1749712947660,13.88674636,159.34,159.29,13.88674636]
[1749712950986,13.88674636,159.34,159.3,13.88674636]
[1749712951157,13.88674636,159.35,159.31,13.88674636]
[1749712951564,13.88674636,159.36,159.31,13.88674636]
[1749712951957,18.56701931,159.36,159.31,13.88674636]
[1749712952161,4.68027295,159.38,159.31,13.88674636]
[1749712952370,18.56701931,159.37,159.33,13.88674636]
[1749712952565,18.56701931,159.38,159.33,13.88674636]
[1749712952877,18.56701931,159.38,159.34,13.88674636]
[1749712953188,13.88674636,159.38,159.34,13.88674636]
[1749712953590,13.88674636,159.38,159.33,13.88674636]
[1749712954886,10.95286851,159.4,159.33,13.88674636]
[1749712955092,13.88674636,159.37,159.33,13.88674636]
[1749712957081,6.27356521,159.4,159.32,39.88674636]
[1749712957284,13.88674636,159.36,159.32,39.88674636]
[1749712957485,13.88674636,159.36,159.32,26.0]
[1749712957690,13.88674636,159.34,159.3,13.88674636]
[1749712957872,13.88674636,159.33,159.27,18.64964886]
[1749712958196,13.88674636,159.29,159.23,18.64964886]
[1749712958368,13.88674636,159.29,159.24,13.88674636]
[1749712958570,13.88674636,159.28,159.24,13.88674636]
[1749712958792,13.88674636,159.28,159.24,39.88674636]
[1749712959671,13.88674636,159.28,159.23,13.88674636]
[1749712959886,13.88674636,159.27,159.22,18.64964886]
[1749712960082,13.88674636,159.27,159.21,1.6099]
[1749712960083,13.88674636,159.27,159.23,13.88674636]
[1749712961600,13.88674636,159.28,159.23,13.88674636]
[1749712961777,13.88674636,159.25,159.22,26.0]
[1749712962098,13.88674636,159.25,159.23,26.0]
[1749712962399,13.88674636,159.27,159.23,39.88674636]
[1749712962580,15.50044636,159.28,159.23,39.88674636]
[1749712962779,11.10221743,159.31,159.24,13.88674636]
[1749712962987,13.88674636,159.28,159.24,13.88674636]
[1749712963189,4.67751743,159.31,159.29,26.0]
[1749712963521,4.67751743,159.34,159.3,13.88674636]
[1749712963697,13.88674636,159.35,159.31,13.88674636]
[1749712964000,13.88674636,159.35,159.3,13.88674636]
[1749712964579,13.88674636,159.35,159.31,13.88674636]
[1749712964799,1.6137,159.37,159.32,13.88674636]
[1749712964976,1.6137,159.37,159.33,13.88674636]
[1749712966997,18.56627644,159.38,159.34,13.88674636]
[1749712967201,13.88674636,159.38,159.34,13.88674636]
[1749712967600,18.56627644,159.38,159.33,39.88674636]
[1749712967798,13.88674636,159.38,159.33,39.88674636]
[1749712969381,23.08660353,159.38,159.33,49.08660353]
[1749712970583,23.08660353,159.38,159.34,23.08660353]
[1749712974405,23.08660353,159.38,159.33,26.0]
[1749712974591,23.08660353,159.38,159.34,23.08660353]
[1749712977914,27.76613361,159.4,159.36,23.08660353]
[1749712978413,23.08660353,159.4,159.36,23.08660353]
[1749712978610,23.08660353,159.4,159.35,23.08660353]
[1749712978808,23.08660353,159.39,159.35,23.08660353]
[1749712980013,6.21353008,159.41,159.33,26.0]
[1749712980014,4.67953008,159.42,159.36,23.08660353]
[1749712980314,23.08660353,159.4,159.36,23.08660353]
[1749712981792,23.08660353,159.39,159.33,26.0]
[1749712981993,23.08660353,159.37,159.33,49.08660353]
[1749712982296,23.08660353,159.36,159.32,23.08660353]
[1749712982906,23.08660353,159.35,159.31,26.0]
[1749712983104,23.08660353,159.35,159.31,49.08660353]
[1749712983305,23.08660353,159.36,159.31,49.08660353]
[1749712984018,23.08660353,159.35,159.31,49.08660353]
[1749712984604,23.08660353,159.35,159.31,26.0]
[1749712985326,23.08660353,159.33,159.29,26.0]
[1749712985491,23.08660353,159.32,159.29,26.0]
[1749712986201,23.08660353,159.31,159.27,23.08660353]
[1749712986403,23.08660353,159.3,159.25,41.73625239]
[1749712986608,23.08660353,159.3,159.25,67.73625239]
[1749712986811,23.08660353,159.3,159.26,23.08660353]
[1749712988606,23.08660353,159.31,159.26,23.08660353]
[1749712989330,13.86408558,159.31,159.26,13.86408558]
[1749712991296,13.86408558,159.31,159.25,44.64964886]
[1749712991502,13.86408558,159.31,159.26,13.86408558]
[1749712991810,13.86408558,159.3,159.26,13.86408558]
[1749712998730,13.86408558,159.3,159.25,58.51373444]
[1749712999728,13.86408558,159.3,159.26,13.86408558]
[1749713000023,32.27560174,159.35,159.27,13.86408558]
[1749713000024,13.86408558,159.31,159.27,13.86408558]
[1749713000831,13.86408558,159.31,159.25,44.64964886]
[1749713001011,13.86408558,159.31,159.27,13.86408558]
[1749713003007,4.66390316,159.34,159.27,13.86408558]
[1749713003329,13.86408558,159.32,159.27,13.86408558]
[1749713005141,13.86408558,159.32,159.28,13.86408558]
[1749713007526,13.86408558,159.32,159.27,13.86408558]
[1749713010340,13.86408558,159.3,159.26,13.86408558]
[1749713010637,13.86408558,159.27,159.23,13.86408558]
[1749713010815,13.86408558,159.27,159.22,32.51373444]
[1749713011014,13.86408558,159.26,159.23,26.0]
[1749713011430,13.86408558,159.27,159.23,26.0]
[1749713011626,13.86408558,159.26,159.23,26.0]
[1749713013620,13.86408558,159.27,159.23,39.86408558]
[1749713014344,13.86408558,159.27,159.23,26.0]
[1749713015433,1.6473,159.32,159.26,13.86408558]
[1749713015638,13.86408558,159.31,159.26,13.86408558]
[1749713015837,1.6473,159.32,159.28,13.86408558]
[1749713016068,13.86408558,159.33,159.28,13.86408558]
[1749713016340,13.86408558,159.33,159.29,13.86408558]
[1749713016718,13.86408558,159.33,159.28,13.86408558]
[1749713017940,13.86408558,159.31,159.27,13.86408558]
[1749713019948,13.86408558,159.32,159.28,13.86408558]
[1749713021945,13.86408558,159.31,159.27,13.86408558]
[1749713022647,13.86408558,159.32,159.27,13.86408558]
[1749713023649,4.66873102,159.34,159.31,13.86408558]
[1749713023828,4.67533128,159.37,159.33,13.86408558]
[1749713024027,18.54059995,159.39,159.32,18.64964886]
[1749713024347,13.86408558,159.37,159.33,13.86408558]
[1749713024550,13.86408558,159.38,159.33,13.86408558]
[1749713024951,1.5733,159.4,159.35,13.86408558]
[1749713025245,4.67743067,159.39,159.35,13.86408558]
[1749713025454,13.86408558,159.39,159.35,13.86408558]
[1749713025832,6.24956333,159.4,159.35,13.86408558]
[1749713026042,13.86408558,159.39,159.35,13.86408558]
[1749713026643,15.43738558,159.4,159.35,13.86408558]
[1749713026851,13.86408558,159.39,159.35,13.86408558]
[1749713027148,20.11364891,159.4,159.35,13.86408558]
[1749713027458,4.67626333,159.42,159.37,13.86408558]
[1749713027651,13.86408558,159.41,159.37,13.86408558]
[1749713027848,4.67626333,159.42,159.39,13.86408558]
[1749713028162,164.59368558,159.44,159.4,13.86408558]
[1749713028351,15.49368558,159.44,159.4,13.86408558]
[1749713029353,13.86408558,159.44,159.4,13.86408558]
[1749713029551,13.86408558,159.45,159.4,13.86408558]
[1749713031086,13.86408558,159.41,159.36,39.86408558]
[1749713031950,13.86408558,159.41,159.36,13.86408558]
[1749713032150,13.86408558,159.41,159.37,13.86408558]
[1749713032352,13.86408558,159.41,159.36,26.0]
[1749713032547,13.86408558,159.41,159.37,13.86408558]
[1749713036149,13.86408558,159.39,159.35,13.86408558]
[1749713036542,13.86408558,159.39,159.34,26.0]
[1749713036760,13.86408558,159.39,159.35,13.86408558]
[1749713037370,13.86408558,159.4,159.35,13.86408558]
[1749713040366,13.86408558,159.39,159.34,26.0]
[1749713040544,13.86408558,159.39,159.35,13.86408558]
[1749713043282,13.86408558,159.38,159.33,13.86408558]
[1749713043588,13.89844441,159.41,159.32,26.0]
[1749713043589,13.86408558,159.37,159.32,26.0]
[1749713043884,13.86408558,159.37,159.33,13.86408558]
[1749713044777,13.86408558,159.37,159.32,26.0]
[1749713044989,13.86408558,159.37,159.33,13.86408558]
[1749713046784,13.86408558,159.37,159.32,26.0]
[1749713046966,13.86408558,159.37,159.33,13.86408558]
[1749713047380,13.86408558,159.38,159.33,13.86408558]
[1749713047978,1.5131,159.41,159.36,13.86408558]
[1749713048486,13.86408558,159.39,159.35,13.86408558]
[1749713048973,13.86408558,159.4,159.36,13.86408558]
[1749713050590,149.1,159.43,159.38,13.86408558]
[1749713050766,162.96408558,159.43,159.38,13.86408558]
[1749713051767,13.86408558,159.43,159.38,13.86408558]
[1749713052485,13.86408558,159.42,159.38,13.86408558]
[1749713053072,13.86408558,159.39,159.35,39.86408558]
[1749713053271,13.86408558,159.37,159.32,13.86408558]
[1749713053977,13.86408558,159.37,159.32,39.86408558]
[1749713054176,13.86408558,159.37,159.32,13.86408558]
[1749713054987,13.86408558,159.35,159.31,39.86408558]
[1749713055189,13.86408558,159.35,159.28,18.933972]
[1749713055190,13.86408558,159.34,159.3,13.86408558]
[1749713055878,14.04508029,159.39,159.3,13.86408558]
[1749713056190,13.86408558,159.35,159.3,13.86408558]
[1749713057791,13.86408558,159.34,159.29,39.86408558]
[1749713057993,13.86408558,159.33,159.29,39.86408558]
[1749713058299,13.86408558,159.33,159.29,26.0]
[1749713058471,13.86408558,159.32,159.28,13.86408558]
[1749713058794,13.86408558,159.3,159.25,13.86408558]
[1749713058967,13.86408558,159.28,159.24,13.86408558]
[1749713059170,13.86408558,159.29,159.24,13.86408558]
[1749713059363,6.0276,159.32,159.26,13.86408558]
[1749713059594,13.86408558,159.3,159.26,13.86408558]
[1749713060889,13.86408558,159.29,159.23,26.0]
[1749713061127,13.86408558,159.28,159.23,39.86408558]
[1749713061892,13.86408558,159.28,159.24,13.86408558]
[1749713062680,13.86408558,159.28,159.22,44.64964886]
[1749713062990,13.86408558,159.27,159.23,13.86408558]
[1749713066011,13.86408558,159.24,159.17,7.8879]
[1749713066177,13.86408558,159.22,159.18,13.86408558]
[1749713066372,13.86408558,159.22,159.18,39.86408558]
[1749713067770,1.5873,159.26,159.2,13.86408558]
[1749713067977,15.45138558,159.26,159.21,13.86408558]
[1749713069203,15.45138558,159.26,159.18,26.0]
[1749713069204,13.86408558,159.27,159.22,13.86408558]
[1749713070004,13.86408558,159.26,159.19,18.64964886]
[1749713070295,26.0,159.28,159.2,13.86408558]
[1749713070502,13.86408558,159.26,159.21,13.86408558]
[1749713071608,13.86408558,159.26,159.22,13.86408558]
[1749713071905,13.86408558,159.27,159.22,13.86408558]
[1749713072082,13.86408558,159.29,159.25,13.86408558]
[1749713074101,13.86408558,159.29,159.24,13.86408558]
[1749713076499,13.86408558,159.28,159.24,13.86408558]
[1749713080698,13.86408558,159.27,159.22,26.0]
[1749713080909,13.86408558,159.23,159.17,1.5515]
[1749713081093,13.86408558,159.22,159.18,13.86408558]
[1749713081295,13.86408558,159.23,159.18,39.86408558]
[1749713081600,13.86408558,159.24,159.19,13.86408558]
[1749713081913,13.86408558,159.24,159.2,13.86408558]
[1749713082222,13.86408558,159.25,159.2,13.86408558]
[1749713082903,13.86408558,159.24,159.2,13.86408558]
[1749713086606,13.86408558,159.24,159.19,13.86408558]
[1749713087011,13.86408558,159.23,159.18,26.0]
[1749713087201,13.86408558,159.23,159.18,39.86408558]
[1749713088317,13.86408558,159.23,159.19,13.86408558]
[1749713090221,13.86408558,159.21,159.14,18.64964886]
[1749713090404,13.86408558,159.19,159.15,13.86408558]
[1749713090801,13.86408558,159.2,159.15,13.86408558]
[1749713091420,13.86408558,159.2,159.16,13.86408558]
[1749713092230,13.86408558,159.2,159.14,44.64964886]
[1749713092729,13.86408558,159.19,159.14,39.86408558]
[1749713093398,13.86408558,159.19,159.14,26.0]
[1749713093733,13.86408558,159.19,159.14,39.86408558]
[1749713094226,13.86408558,159.19,159.15,13.86408558]
[1749713094430,13.86408558,159.19,159.14,26.0]
[1749713094728,13.86408558,159.19,159.15,13.86408558]
[1749713094903,13.86408558,159.19,159.14,26.0]
[1749713095098,13.86408558,159.18,159.13,13.86408558]
[1749713095629,13.86408558,159.18,159.14,13.86408558]
[1749713097007,13.86408558,159.19,159.14,13.86408558]
[1749713097218,13.86408558,159.18,159.14,13.86408558]
[1749713102011,6.28067347,159.22,159.14,13.86408558]
[1749713102539,13.86408558,159.18,159.14,13.86408558]
[1749713102720,13.86408558,159.19,159.15,13.86408558]
[1749713103732,32.56459756,159.23,159.15,13.86408558]
[1749713104042,13.86408558,159.2,159.16,13.86408558]
[1749713104218,13.86408558,159.22,159.17,13.86408558]
[1749713104609,13.86408558,159.22,159.18,13.86408558]
[1749713104944,7.7898,159.25,159.19,13.86408558]
[1749713105119,15.42418558,159.25,159.21,13.86408558]
[1749713105320,13.86408558,159.27,159.23,13.86408558]
[1749713105511,13.86408558,159.28,159.23,13.86408558]
[1749713105707,13.86408558,159.28,159.24,13.86408558]
[1749713105911,7.5673,159.29,159.24,13.86408558]
[1749713106159,15.42438558,159.29,159.24,13.86408558]
[1749713106849,1.5603,159.29,159.25,13.86408558]
[1749713107020,15.42438558,159.29,159.25,13.86408558]
[1749713107334,13.86408558,159.28,159.24,13.86408558]
[1749713107717,13.86408558,159.28,159.23,13.86408558]
[1749713108310,13.86408558,159.27,159.23,13.86408558]
[1749713109036,1.5603,159.29,159.23,13.86408558]
[1749713109241,13.86408558,159.27,159.23,13.86408558]
[1749713109726,1.5603,159.29,159.24,13.86408558]
[1749713109909,13.86408558,159.28,159.24,13.86408558]
[1749713111743,13.86408558,159.28,159.23,13.86408558]
[1749713112533,13.86408558,159.27,159.22,13.86408558]
[1749713114130,13.86408558,159.27,159.23,13.86408558]
[1749713116627,13.86408558,159.27,159.21,26.0]
[1749713116832,13.86408558,159.27,159.23,13.86408558]
[1749713117418,13.86408558,159.27,159.21,26.0]
[1749713117622,13.86408558,159.25,159.21,39.86408558]
[1749713118022,13.86408558,159.25,159.2,13.86408558]
[1749713118436,13.86408558,159.25,159.21,13.86408558]
[1749713118925,13.86408558,159.27,159.22,13.86408558]
[1749713119551,13.86408558,159.26,159.18,18.64964886]
[1749713119732,13.86408558,159.26,159.22,13.86408558]
[1749713121749,13.86408558,159.26,159.21,13.86408558]
[1749713123537,13.86408558,159.25,159.2,13.86408558]
[1749713123743,13.86408558,159.24,159.2,13.86408558]
[1749713123946,13.86408558,159.24,159.19,13.86408558]
[1749713124147,13.86408558,159.23,159.17,26.0]
[1749713124346,13.86408558,159.23,159.18,13.86408558]
[1749713125147,13.86408558,159.23,159.19,13.86408558]
[1749713125349,13.86408558,159.24,159.19,13.86408558]
[1749713125854,13.86408558,159.25,159.2,13.86408558]
[1749713126155,13.86408558,159.25,159.21,13.86408558]
[1749713126458,13.86408558,159.25,159.15,1.6173]
[1749713126459,13.86408558,159.25,159.2,13.86408558]
[1749713126657,13.86408558,159.22,159.18,13.86408558]
[1749713127035,13.86408558,159.2,159.14,44.64964886]
[1749713127356,1.5473,159.23,159.17,13.86408558]
[1749713127562,13.86408558,159.22,159.17,13.86408558]
[1749713128057,13.86408558,159.21,159.14,44.64964886]
[1749713128255,13.86408558,159.21,159.16,13.86408558]
[1749713128554,13.86408558,159.2,159.16,13.86408558]
[1749713128853,1.5473,159.23,159.16,13.86408558]
[1749713128854,13.86408558,159.21,159.16,13.86408558]
[1749713129046,13.86408558,159.2,159.16,13.86408558]
[1749713130660,13.86408558,159.21,159.16,13.86408558]
[1749713131448,13.86408558,159.22,159.17,13.86408558]
[1749713134158,13.86408558,159.22,159.14,44.64964886]
[1749713134350,13.86408558,159.22,159.17,13.86408558]
[1749713135366,13.86408558,159.21,159.17,13.86408558]
[1749713135861,1.5473,159.23,159.17,13.86408558]
[1749713136187,13.86408558,159.21,159.17,13.86408558]
[1749713136342,1.5473,159.23,159.17,13.86408558]
[1749713136674,13.86408558,159.21,159.17,13.86408558]
[1749713137662,13.86408558,159.21,159.14,44.64964886]
[1749713137967,13.86408558,159.21,159.17,13.86408558]
[1749713138663,13.86408558,159.21,159.14,44.64964886]
[1749713138962,13.86408558,159.2,159.15,13.86408558]
[1749713139160,13.86408558,159.19,159.14,39.86408558]
[1749713140151,13.86408558,159.19,159.14,26.0]
[1749713140355,13.86408558,159.19,159.13,26.0]
[1749713140657,13.86408558,159.19,159.15,13.86408558]
[1749713141256,27.83162314,159.23,159.13,26.0]
[1749713141452,13.86408558,159.18,159.13,39.86408558]
[1749713141654,13.86408558,159.18,159.14,13.86408558]
[1749713142158,13.86408558,159.18,159.13,26.0]
[1749713142470,13.86408558,159.18,159.14,13.86408558]
[1749713144072,6.28125565,159.21,159.14,13.86408558]
[1749713144246,13.86408558,159.18,159.14,13.86408558]
[1749713145370,13.86408558,159.18,159.13,26.0]
[1749713145557,13.86408558,159.18,159.14,13.86408558]
[1749713146960,13.86408558,159.19,159.14,13.86408558]
[1749713149455,13.86408558,159.19,159.13,26.0]
[1749713149763,13.86408558,159.19,159.14,13.86408558]
[1749713150275,13.86408558,159.15,159.07,8.31457775]
[1749713150481,13.86408558,159.14,159.08,18.64964886]
[1749713150650,13.86408558,159.14,159.09,13.86408558]
[1749713150847,1.5695,159.17,159.1,13.86408558]
[1749713151055,41.43358558,159.17,159.13,13.86408558]
[1749713152065,41.43358558,159.17,159.08,18.64964886]
[1749713152557,41.43358558,159.17,159.12,13.86408558]
[1749713153280,15.43358558,159.17,159.13,13.86408558]
[1749713153487,13.86408558,159.18,159.14,13.86408558]
[1749713153959,176.668,159.21,159.14,13.86408558]
[1749713154377,13.86408558,159.18,159.14,13.86408558]
[1749713155772,13.86408558,159.19,159.15,13.86408558]
[1749713157564,13.86408558,159.2,159.15,13.86408558]
[1749713158788,27.568,159.21,159.12,32.51373444]
[1749713158967,27.568,159.21,159.17,13.86408558]
[1749713159169,41.43208558,159.21,159.17,13.86408558]
[1749713161588,13.86408558,159.18,159.07,101.91241618]
[1749713161795,13.86408558,159.15,159.11,39.86408558]
[1749713162286,13.86408558,159.16,159.12,13.86408558]
[1749713162695,24.58423284,159.2,159.12,13.86408558]
[1749713162696,13.86408558,159.17,159.12,13.86408558]
[1749713162993,13.86408558,159.16,159.12,13.86408558]
[1749713164580,6.56627643,159.19,159.12,13.86408558]
[1749713164780,13.86408558,159.16,159.12,13.86408558]
[1749713166269,6.56627643,159.19,159.1,13.86408558]
[1749713166270,13.86408558,159.15,159.1,13.86408558]
[1749713167385,26.0,159.17,159.1,13.86408558]
[1749713167580,13.86408558,159.16,159.11,13.86408558]
[1749713168600,13.86408558,159.15,159.11,13.86408558]
[1749713168815,13.86408558,159.15,159.08,18.64964886]
[1749713168816,15.42868558,159.15,159.08,18.64964886]
[1749713169001,15.42868558,159.15,159.1,13.86408558]
[1749713169196,13.86408558,159.14,159.07,26.0]
[1749713169405,13.86408558,159.13,159.07,26.0]
[1749713169606,13.86408558,159.13,159.09,13.86408558]
[1749713170104,13.86408558,159.14,159.1,13.86408558]
[1749713170980,1.5646,159.15,159.1,13.86408558]
[1749713171407,13.86408558,159.14,159.1,13.86408558]
[1749713171906,1.5646,159.15,159.07,26.0]
[1749713172111,13.86408558,159.14,159.1,13.86408558]
[1749713173811,13.86408558,159.12,159.07,26.0]
[1749713174006,13.86408558,159.12,159.07,39.86408558]
[1749713174187,13.86408558,159.13,159.09,13.86408558]
[1749713175509,13.86408558,159.13,159.08,13.86408558]
[1749713175875,13.86408558,159.12,159.08,13.86408558]
[1749713178787,13.86408558,159.12,159.07,26.0]
[1749713179005,13.86408558,159.12,159.08,13.86408558]
[1749713179625,13.86408558,159.12,159.07,26.0]
[1749713179822,13.86408558,159.12,159.08,13.86408558]
[1749713180719,13.86408558,159.1,159.0,1.6596]
[1749713180923,13.86408558,159.08,159.04,13.86408558]
[1749713181093,13.86408558,159.09,159.04,13.86408558]
[1749713181487,6.56946758,159.11,159.04,13.86408558]
[1749713181792,13.86408558,159.1,159.05,13.86408558]
[1749713182184,13.86408558,159.09,159.05,13.86408558]
[1749713182414,26.28432314,159.11,159.05,13.86408558]
[1749713182616,13.86408558,159.09,159.05,13.86408558]
[1749713183198,26.28432314,159.11,159.05,13.86408558]
[1749713183400,13.86408558,159.09,159.05,13.86408558]
[1749713184522,1.5968,159.1,159.02,26.0]
[1749713184703,13.86408558,159.08,159.02,26.0]
[1749713184899,13.86408558,159.08,159.03,13.86408558]
[1749713186526,1.5968,159.1,159.03,13.86408558]
[1749713186826,13.86408558,159.08,159.04,13.86408558]
[1749713187318,1.5968,159.1,159.04,13.86408558]
[1749713187806,13.86408558,159.08,159.04,13.86408558]
[1749713188208,1.5968,159.1,159.05,13.86408558]
[1749713188400,13.86408558,159.09,159.05,13.86408558]
[1749713189523,1.5968,159.1,159.04,13.86408558]
[1749713189816,1.5968,159.1,159.05,13.86408558]
[1749713190018,13.86408558,159.1,159.06,13.86408558]
[1749713190410,0.28432314,159.13,159.07,13.86408558]